fUSD/lending_fUSD_20241123
["ID","MTS","AMOUNT","RATE_DAILY","PERIOD"]
[343091502,1732345843710,-400.0,0.000549,20]
[343091503,1732345843718,-170.14724802,0.000549,120]
[343091504,1732345843728,-172.94566698,0.000549,2]
[343091505,1732345843744,-150.0,0.00054902,14]
[343091506,1732345843755,-150.0,0.00054903,14]
[343091507,1732345843765,-150.0,0.00054906,14]
[343091508,1732345843775,-150.0,0.00054906,14]
[343091509,1732345843784,-1649.03697,0.0005491,72]
[343091510,1732345843793,-150.0,0.00054912,14]
[343091511,1732345843803,-1500.0,0.00054916,30]
[343091512,1732345843813,-150.0,0.00054924,14]
[343091513,1732345843822,-1500.0,0.00054925,30]
[343091514,1732345843833,-150.0,0.00054926,14]
[343091515,1732345843843,-150.0,0.00054927,14]
[343091516,1732345843852,-150.0,0.00054928,14]
[343091517,1732345843862,-1500.0,0.00054929,30]
[343091518,1732345843874,-1500.0,0.00054929,30]
[343091519,1732345843885,-150.0,0.00054929,14]
[343091520,1732345843895,-150.0,0.00054933,14]
[343091521,1732345843905,-150.0,0.00054938,14]
[343091524,1732345843914,-150.0,0.0005494,14]
[343091526,1732345843924,-150.0,0.0005494,14]
[343091527,1732345843934,-150.0,0.0005494,14]
[343091528,1732345843944,-1500.0,0.0005494,30]
[343091529,1732345843954,-150.0,0.00054941,14]
[343091530,1732345843966,-150.0,0.00054943,14]
[343091531,1732345843976,-1500.0,0.00054944,30]
[343091532,1732345843986,-150.0,0.00054946,14]
[343091533,1732345843996,-150.0,0.0005495,14]
[343091534,1732345844006,-150.0,0.00054951,30]
[343091535,1732345844015,-150.0,0.00054954,14]
[343091536,1732345844025,-1500.0,0.00054954,30]
[343091537,1732345844034,-150.0,0.00054959,14]
[343091538,1732345844044,-150.0,0.00054962,14]
[343091539,1732345844053,-150.0,0.00054962,14]
[343091540,1732345844063,-150.0,0.00054965,14]
[343091541,1732345844072,-253.0,0.0005497,7]
[343091542,1732345844081,-1505.29699602,0.0005497,120]
[343091543,1732345844091,-1480.92658221,0.00054978,30]
[343091544,1732345844101,-253.0,0.0005498,7]
[343091545,1732345844111,-150.0,0.00054982,14]
[343091546,1732345844120,-150.0,0.00054982,14]
[343091547,1732345844130,-150.0,0.00054982,14]
[343091548,1732345844140,-1016.53185678,0.00054983,2]
[343091549,1732345844149,-150.0,0.00054988,14]
[343091550,1732345844158,-150.0,0.00054988,14]
[343091551,1732345844168,-150.0,0.00054988,14]
[343091552,1732345844178,-200.0,0.00054989,120]
[343091553,1732345844187,-150.0,0.0005499,14]
[343091554,1732345844198,-253.0,0.0005499,7]
[343091555,1732345844207,-500.0,0.00054995,120]
[343091556,1732345844304,-500.0,0.00054995,120]
[343091557,1732345844315,-500.0,0.00054995,120]
[343091558,1732345844325,-500.0,0.00054995,120]
[343091559,1732345844334,-500.0,0.00054995,120]
[343091560,1732345844344,-500.0,0.00054995,120]
[343091561,1732345844353,-506.15224094,0.00054995,120]
[343091562,1732345844363,-495.0,0.00054995,120]
[343091563,1732345844373,-1725.2,0.00054995,120]
[343091564,1732345844383,-359.63260379,0.00054995,120]
[343091565,1732345844393,-720.64,0.00054995,120]
[343091566,1732345844402,-186.11208605,0.00054995,120]
[343091567,1732345844413,-933.59,0.00054995,120]
[343091568,1732345844423,-634.72,0.00054995,120]
[343091569,1732345844432,-191.71590035,0.00054995,120]
[343091570,1732345844442,-500.0,0.00054995,120]
[343091571,1732345844452,-500.0,0.00054995,120]
[343091572,1732345844461,-500.0,0.00054995,120]
[343091573,1732345844471,-500.0,0.00054995,120]
[343091574,1732345844480,-500.0,0.00054995,120]
[343091575,1732345844495,-500.0,0.00054995,120]
[343091576,1732345844504,-500.0,0.00054995,120]
[343091577,1732345844514,-500.0,0.00054995,120]
[343091578,1732345844523,-500.0,0.00054995,120]
[343091579,1732345844534,-500.0,0.00054995,120]
[343091580,1732345844543,-500.0,0.00054995,120]
[343091581,1732345844553,-500.0,0.00054995,120]
[343091582,1732345844566,-500.0,0.00054995,120]
[343091583,1732345844576,-509.94570943,0.00054995,120]
[343091584,1732345844586,-500.0,0.00054995,120]
[343091585,1732345844596,-500.0,0.00054995,120]
[343091586,1732345844605,-1000.0,0.00054995,120]
[343091587,1732345844615,-500.0,0.00054995,120]
[343091588,1732345844625,-500.0,0.00054995,120]
[343091589,1732345844635,-500.0,0.00054995,120]
[343091590,1732345844644,-500.0,0.00054995,120]
[343091591,1732345844654,-500.0,0.00054995,120]
[343091592,1732345844663,-500.0,0.00054995,7]
[343091593,1732345844673,-500.0,0.00054995,120]
[343091594,1732345844682,-500.0,0.00054995,120]
[343091595,1732345844691,-500.0,0.00054995,120]
[343091596,1732345844701,-500.0,0.00054995,120]
[343091597,1732345844710,-500.0,0.00054995,120]
[343091598,1732345844719,-500.0,0.00054995,120]
[343091599,1732345844728,-500.0,0.00054995,120]
[343091600,1732345844738,-500.0,0.00054995,120]
[343091601,1732345844747,-500.0,0.00054995,120]
[343091602,1732345844756,-500.0,0.00054995,120]
[343091603,1732345844765,-500.0,0.00054995,120]
[343091604,1732345844774,-500.0,0.00054995,120]
[343091605,1732345844784,-500.0,0.00054995,120]
[343091606,1732345844794,-500.0,0.00054995,120]
[343091607,1732345844803,-500.0,0.00054995,120]
[343091608,1732345844813,-500.0,0.00054995,120]
[343091609,1732345844823,-500.0,0.00054995,120]
[343091610,1732345844832,-500.0,0.00054995,120]
[343091611,1732345844841,-1750.18659304,0.00054995,120]
[343091612,1732345844851,-500.0,0.00054995,120]
[343091613,1732345844860,-500.0,0.00054995,120]
[343091614,1732345844870,-500.0,0.00054995,120]
[343091615,1732345844879,-397.09115806,0.00054995,120]
[343091616,1732345844891,-500.0,0.00054995,120]
[343091617,1732345844900,-500.0,0.00054995,120]
[343091618,1732345844910,-500.0,0.00054995,120]
[343091619,1732345844919,-500.0,0.00054995,120]
[343091620,1732345844928,-500.0,0.00054995,120]
[343091621,1732345844937,-500.0,0.00054995,120]
[343091622,1732345844947,-500.0,0.00054995,120]
[343091623,1732345844956,-458.96,0.00054995,120]
[343091624,1732345844966,-500.0,0.00054995,120]
[343091625,1732345844975,-500.0,0.00054995,120]
[343091626,1732345844984,-500.0,0.00054995,120]
[343091627,1732345844994,-1772.96,0.00054995,120]
[343091628,1732345845004,-4267.37,0.00054995,120]
[343091629,1732345845014,-189.82,0.00054995,120]
[343091630,1732345845023,-549.71,0.00054995,120]
[343091631,1732345845032,-500.0,0.00054995,120]
[343091632,1732345845042,-727.7,0.00054995,120]
[343091633,1732345845052,-500.0,0.00054995,120]
[343091634,1732345845061,-500.0,0.00054995,120]
[343091635,1732345845071,-928.39,0.00054995,120]
[343091636,1732345845080,-500.0,0.00054995,120]
[343091637,1732345845090,-40000.00000099,0.00054996,120]
[343091638,1732345845100,-292.94,0.00054997,120]
[343091639,1732345845110,-416.1274821,0.00054997,120]
[343091640,1732345845119,-500.0,0.00054997,120]
[343091641,1732345845128,-500.0,0.00054997,120]
[343091642,1732345845140,-500.0,0.00054997,21]
[343091643,1732345845150,-500.0,0.00054997,120]
[343091644,1732345845160,-500.0,0.00054997,120]
[343091645,1732345845170,-500.0,0.00054997,120]
[343091646,1732345845181,-500.0,0.00054997,120]
[343091647,1732345845190,-573.71301382,0.00054997,120]
[343091648,1732345845200,-500.0,0.00054997,120]
[343091649,1732345845210,-500.0,0.00054997,120]
[343091650,1732345845220,-500.0,0.00054997,120]
[343091651,1732345845230,-592.54,0.00054997,120]
[343091652,1732345845240,-500.0,0.00054997,120]
[343091653,1732345845250,-500.0,0.00054997,120]
[343091654,1732345845261,-500.0,0.00054997,120]
[343091655,1732345845270,-500.0,0.00054997,120]
[343091656,1732345845280,-243.36,0.00054997,120]
[343091657,1732345845290,-754.97,0.00054997,120]
[343091658,1732345845300,-533.98,0.00054997,120]
[343091659,1732345845309,-500.0,0.00054997,120]
[343091660,1732345845318,-500.0,0.00054997,120]
[343091661,1732345845328,-500.0,0.00054997,120]
[343091662,1732345845337,-500.0,0.00054997,120]
[343091663,1732345845347,-500.0,0.00054997,120]
[343091664,1732345845356,-500.0,0.00054997,120]
[343091665,1732345845365,-153.44,0.00054997,7]
[343091666,1732345845375,-500.0,0.00054997,120]
[343091667,1732345845387,-500.0,0.00054998,120]
[343091668,1732345845397,-500.0,0.00054998,120]
[343091669,1732345845406,-957.15,0.00054998,120]
[343091670,1732345845416,-563.05,0.00054998,120]
[343091671,1732345845426,-500.0,0.00054998,120]
[343091672,1732345845436,-536.24,0.00054998,120]
[343091673,1732345845445,-500.0,0.00054998,120]
[343091674,1732345845455,-500.0,0.00054998,120]
[343091675,1732345845463,-340.96,0.00054998,120]
[343091676,1732345845473,-500.0,0.00054998,120]
[343091677,1732345845484,-591.66539361,0.00054998,120]
[343091678,1732345845494,-500.0,0.00054998,120]
[343091679,1732345845503,-500.0,0.00054998,120]
[343091680,1732345845513,-500.0,0.00054998,120]
[343091681,1732345845524,-612.5,0.00054998,120]
[343091682,1732345845534,-584.72,0.00054998,120]
[343091683,1732345845544,-553.62,0.00054998,120]
[343091684,1732345845553,-1725.2,0.00054998,120]
[343091685,1732345845562,-1725.2,0.00054998,120]
[343091686,1732345845572,-500.0,0.00054998,120]
[343091687,1732345845581,-920.73,0.00054998,120]
[343091688,1732345845591,-720.64,0.00054998,120]
[343091689,1732345845600,-720.64,0.00054998,120]
[343091690,1732345845610,-933.59,0.00054998,120]
[343091691,1732345845619,-933.59,0.00054998,120]
[343091692,1732345845628,-634.72,0.00054998,120]
[343091693,1732345845640,-634.72,0.00054998,120]
[343091694,1732345845649,-169.75315227,0.00054998,120]
[343091695,1732345845659,-646.04434712,0.00054998,120]
[343091696,1732345845668,-522.74472336,0.00054998,120]
[343091697,1732345845678,-403.59,0.00054998,120]
[343091698,1732345845687,-500.0,0.00054998,120]
[343091699,1732345845697,-572.29617001,0.00054998,120]
[343091700,1732345845706,-500.0,0.00054998,120]
[343091701,1732345845716,-590.04,0.00054998,120]
[343091702,1732345845725,-362.82,0.00054998,120]
[343091703,1732345845735,-500.0,0.00054998,120]
[343091704,1732345845744,-500.0,0.00054998,120]
[343091705,1732345845753,-189.2824415,0.00054998,120]
[343091706,1732345845763,-500.0,0.00054998,120]
[343091707,1732345845772,-500.0,0.00054998,120]
[343091708,1732345845781,-521.28560263,0.00054998,120]
[343091709,1732345845791,-500.0,0.00054998,120]
[343091710,1732345845801,-500.0,0.00054998,120]
[343091711,1732345845811,-557.56600319,0.00054998,120]
[343091712,1732345845821,-500.0,0.00054998,21]
[343091713,1732345845832,-500.0,0.00054998,21]
[343091714,1732345845842,-500.0,0.00054998,120]
[343091715,1732345845852,-579.00012519,0.00054998,120]
[343091716,1732345845862,-500.0,0.00054998,120]
[343091717,1732345845871,-1000.0,0.00054998,120]
[343091718,1732345845882,-1046.21062508,0.00054998,120]
[343091719,1732345845894,-581.76475745,0.00054998,120]
[343091720,1732345845904,-500.0,0.00054998,120]
[343091721,1732345845913,-549.52013708,0.00054998,120]
[343091722,1732345845923,-500.0,0.00054998,120]
[343091723,1732345845933,-580.39843833,0.00054998,120]
[343091724,1732345845942,-500.0,0.00054998,120]
[343091725,1732345845952,-643.80238046,0.00054998,120]
[343091726,1732345845961,-500.0,0.00054998,120]
[343091727,1732345845973,-547.72088406,0.00054998,120]
[343091728,1732345845983,-500.0,0.00054998,7]
[343091729,1732345845992,-538.26246196,0.00054998,7]
[343091730,1732345846001,-500.0,0.00054998,120]
[343091731,1732345846011,-500.0,0.00054998,120]
[343091733,1732345846105,-500.0,0.00054998,120]
[343091734,1732345846116,-500.0,0.00054998,120]
[343091735,1732345846126,-500.0,0.00054998,120]
[343091736,1732345846141,-554.87552614,0.00054998,120]
[343091737,1732345846153,-607.74462302,0.00054998,120]
[343091738,1732345846163,-500.0,0.00054998,120]
[343091739,1732345846172,-500.0,0.00054998,120]
[343091740,1732345846181,-358.10898996,0.00054998,120]
[343091741,1732345846191,-641.67047317,0.00054998,120]
[343091742,1732345846201,-554.43940336,0.00054998,120]
[343091743,1732345846213,-500.0,0.00054998,120]
[343091744,1732345846223,-500.0,0.00054998,120]
[343091745,1732345846233,-500.0,0.00054998,120]
[343091746,1732345846242,-331.75486564,0.00054998,120]
[343091748,1732345846252,-500.0,0.00054998,120]
[343091750,1732345846262,-499.9800518,0.00054998,120]
[343091752,1732345846271,-186.38935099,0.00054998,120]
[343091753,1732345846281,-500.0,0.00054998,120]
[343091754,1732345846291,-500.0,0.00054998,120]
[343091755,1732345846300,-500.0,0.00054998,120]
[343091756,1732345846310,-500.0,0.00054998,120]
[343091757,1732345846319,-500.0,0.00054998,120]
[343091758,1732345846329,-411.00654487,0.00054998,120]
[343091759,1732345846338,-500.0,0.00054998,120]
[343091760,1732345846347,-500.0,0.00054998,120]
[343091761,1732345846356,-500.0,0.00054998,120]
[343091762,1732345846370,-500.0,0.00054998,120]
[343091763,1732345846380,-500.0,0.00054998,120]
[343091764,1732345846391,-520.24158554,0.00054998,120]
[343091765,1732345846401,-500.0,0.00054998,120]
[343091766,1732345846411,-500.0,0.00054998,120]
[343091767,1732345846420,-500.0,0.00054998,120]
[343091768,1732345846430,-473.99291572,0.00054998,120]
[343091769,1732345846439,-500.0,0.00054998,120]
[343091770,1732345846449,-331.06186755,0.00054998,120]
[343091771,1732345846458,-348.97757895,0.00054998,120]
[343091772,1732345846468,-500.0,0.00054998,120]
[343091773,1732345846481,-500.0,0.00054998,120]
[343091774,1732345846491,-500.0,0.00054998,120]
[343091775,1732345846501,-630.46689994,0.00054998,120]
[343091776,1732345846511,-500.0,0.00054998,120]
[343091777,1732345846522,-500.0,0.00054998,120]
[343091778,1732345846531,-500.0,0.00054998,120]
[343091779,1732345846541,-500.0,0.00054998,120]
[343091780,1732345846551,-500.0,0.00054998,120]
[343091781,1732345846561,-500.0,0.00054998,120]
[343091782,1732345846570,-500.0,0.00054998,120]
[343091783,1732345846580,-500.0,0.00054998,120]
[343091784,1732345846589,-500.0,0.00054998,120]
[343091785,1732345846599,-324.15205457,0.00054998,120]
[343091786,1732345846608,-500.0,0.00054998,120]
[343091787,1732345846618,-500.0,0.00054998,120]
[343091788,1732345846627,-500.0,0.00054998,120]
[343091789,1732345846638,-500.0,0.00054998,120]
[343091790,1732345846648,-500.0,0.00054998,120]
[343091791,1732345846658,-500.0,0.00054998,120]
[343091792,1732345846668,-500.0,0.00054998,120]
[343091793,1732345846679,-500.0,0.00054998,120]
[343091794,1732345846688,-500.0,0.00054998,120]
[343091795,1732345846699,-500.0,0.00054998,120]
[343091796,1732345846709,-153.7801915,0.00054998,120]
[343091797,1732345846719,-217.61,0.00054998,120]
[343091798,1732345846729,-500.0,0.00054998,120]
[343091799,1732345846739,-409.1347504,0.00054998,120]
[343091800,1732345846749,-1772.96,0.00054998,120]
[343091801,1732345846759,-1772.96,0.00054998,120]
[343091802,1732345846769,-4267.37,0.00054998,120]
[343091803,1732345846779,-4267.37,0.00054998,120]
[343091804,1732345846789,-500.0,0.00054998,120]
[343091805,1732345846798,-500.0,0.00054998,120]
[343091806,1732345846809,-727.7,0.00054998,120]
[343091807,1732345846818,-727.7,0.00054998,120]
[343091808,1732345846828,-754.97,0.00054998,120]
[343091809,1732345846838,-754.97,0.00054998,120]
[343091810,1732345846847,-533.98,0.00054998,120]
[343091811,1732345846856,-533.98,0.00054998,120]
[343091812,1732345846865,-500.0,0.00054998,120]
[343091813,1732345846875,-500.0,0.00054998,120]
[343091814,1732345846883,-626.40647686,0.00054998,120]
[343091815,1732345846895,-500.0,0.00054998,120]
[343091816,1732345846904,-500.0,0.00054998,120]
[343091817,1732345846913,-500.0,0.00054998,120]
[343091818,1732345846922,-500.0,0.00054998,120]
[343091819,1732345846931,-500.0,0.00054998,120]
[343091820,1732345846940,-286.75,0.00054998,120]
[343091821,1732345846949,-500.0,0.00054998,120]
[343091822,1732345846958,-500.0,0.00054998,120]
[343091823,1732345846968,-287.45904162,0.00054998,120]
[343091824,1732345846977,-928.39,0.00054998,120]
[343091825,1732345846986,-928.39,0.00054998,120]
[343091827,1732345846996,-500.0,0.00054998,120]
[343091828,1732345847006,-440.88,0.00054998,120]
[343091829,1732345847015,-546.42,0.00054998,120]
[343091830,1732345847025,-500.0,0.00054998,120]
[343091831,1732345847035,-500.0,0.00054998,120]
[343091832,1732345847045,-379.76106984,0.00054999,120]
[343091833,1732345847055,-500.0,0.00054999,120]
[343091834,1732345847065,-500.0,0.00054999,120]
[343091835,1732345847075,-500.0,0.00054999,120]
[343091836,1732345847085,-500.0,0.00054999,120]
[343091837,1732345847094,-500.0,0.00054999,120]
[343091838,1732345847104,-500.0,0.00054999,120]
[343091839,1732345847113,-500.0,0.00054999,120]
[343091840,1732345847123,-500.0,0.00054999,120]
[343091841,1732345847132,-500.0,0.00054999,120]
[343091842,1732345847144,-500.0,0.00054999,120]
[343091843,1732345847153,-187.37649974,0.00054999,120]
[343091844,1732345847163,-514.05,0.00054999,120]
[343091845,1732345847172,-514.05,0.00054999,120]
[343091846,1732345847181,-514.05,0.00054999,120]
[343091847,1732345847191,-514.05,0.00054999,120]
[343091848,1732345847200,-514.05,0.00054999,120]
[343091849,1732345847210,-514.05,0.00054999,120]
[343091850,1732345847220,-514.05,0.00054999,120]
[343091851,1732345847229,-514.05,0.00054999,120]
[343091852,1732345847239,-514.05,0.00054999,120]
[343091853,1732345847248,-514.05,0.00054999,120]
[343091854,1732345847258,-514.05,0.00054999,120]
[343091855,1732345847268,-500.0,0.00054999,120]
[343091856,1732345847277,-514.05,0.00054999,120]
[343091857,1732345847287,-500.0,0.00054999,120]
[343091858,1732345847296,-514.05,0.00054999,120]
[343091859,1732345847306,-500.0,0.00054999,120]
[343091860,1732345847316,-514.05,0.00054999,120]
[343091861,1732345847325,-296.22925982,0.00054999,120]
[343091862,1732345847335,-514.05,0.00054999,120]
[343091863,1732345847344,-514.05,0.00054999,120]
[343091864,1732345847354,-514.05,0.00054999,120]
[343091865,1732345847364,-514.28212,0.00054999,120]
[343091866,1732345847373,-957.15,0.00054999,120]
[343091867,1732345847382,-957.15,0.00054999,120]
[343091868,1732345847394,-957.15,0.00054999,120]
[343091869,1732345847403,-957.15,0.00054999,120]
[343091870,1732345847414,-957.15,0.00054999,120]
[343091871,1732345847426,-957.15,0.00054999,120]
[343091872,1732345847436,-957.15,0.00054999,120]
[343091873,1732345847445,-957.15,0.00054999,120]
[343091874,1732345847454,-957.15,0.00054999,120]
[343091875,1732345847464,-957.15,0.00054999,120]
[343091876,1732345847474,-957.15,0.00054999,120]
[343091877,1732345847485,-957.15,0.00054999,120]
[343091878,1732345847496,-957.15,0.00054999,120]
[343091879,1732345847506,-957.15,0.00054999,120]
[343091880,1732345847515,-957.15,0.00054999,120]
[343091881,1732345847524,-957.15,0.00054999,120]
[343091882,1732345847534,-957.15,0.00054999,120]
[343091883,1732345847543,-957.15,0.00054999,120]
[343091884,1732345847552,-957.37097709,0.00054999,120]
[343091885,1732345847561,-563.05,0.00054999,120]
[343091886,1732345847571,-563.05,0.00054999,120]
[343091887,1732345847581,-563.05,0.00054999,120]
[343091888,1732345847590,-563.05,0.00054999,120]
[343091889,1732345847600,-563.05,0.00054999,120]
[343091890,1732345847609,-563.05,0.00054999,120]
[343091891,1732345847618,-563.05,0.00054999,120]
[343091892,1732345847628,-563.05,0.00054999,120]
[343091893,1732345847639,-563.05,0.00054999,120]
[343091894,1732345847649,-563.05,0.00054999,120]
[343091895,1732345847658,-563.05,0.00054999,120]
[343091896,1732345847668,-563.05,0.00054999,120]
[343091897,1732345847678,-563.05,0.00054999,120]
[343091898,1732345847688,-563.05,0.00054999,120]
[343091899,1732345847778,-563.05,0.00054999,120]
[343091900,1732345847788,-563.05,0.00054999,120]
[343091901,1732345847798,-563.05,0.00054999,120]
[343091902,1732345847808,-563.05,0.00054999,120]
[343091903,1732345847819,-563.14030498,0.00054999,120]
[343091904,1732345847828,-500.0,0.00054999,120]
[343091905,1732345847838,-500.0,0.00054999,120]
[343091906,1732345847848,-500.0,0.00054999,120]
[343091907,1732345847858,-500.0,0.00054999,120]
[343091908,1732345847869,-500.0,0.00054999,120]
[343091909,1732345847879,-500.0,0.00054999,120]
[343091910,1732345847891,-500.0,0.00054999,120]
[343091911,1732345847900,-500.0,0.00054999,120]
[343091912,1732345847910,-500.0,0.00054999,120]
[343091913,1732345847919,-500.0,0.00054999,120]
[343091914,1732345847928,-500.0,0.00054999,120]
[343091915,1732345847938,-500.0,0.00054999,120]
[343091916,1732345847947,-500.0,0.00054999,120]
[343091917,1732345847957,-500.0,0.00054999,120]
[343091918,1732345847966,-500.0,0.00054999,120]
[343091919,1732345847975,-500.0,0.00054999,120]
[343091920,1732345847985,-223.15250249,0.00054999,120]
[343091921,1732345847994,-536.24,0.00054999,120]
[343091922,1732345848004,-536.24,0.00054999,120]
[343091923,1732345848014,-536.24,0.00054999,120]
[343091924,1732345848024,-536.24,0.00054999,120]
[343091925,1732345848035,-536.24,0.00054999,120]
[343091926,1732345848044,-536.24,0.00054999,120]
[343091927,1732345848054,-536.24,0.00054999,120]
[343091928,1732345848064,-536.24,0.00054999,120]
[343091929,1732345848074,-536.24,0.00054999,120]
[343091930,1732345848084,-536.24,0.00054999,120]
[343091931,1732345848093,-536.24,0.00054999,120]
[343091932,1732345848103,-536.24,0.00054999,120]
[343091933,1732345848113,-536.24,0.00054999,120]
[343091934,1732345848122,-536.24,0.00054999,120]
[343091935,1732345848133,-536.24,0.00054999,120]
[343091936,1732345848144,-536.24,0.00054999,120]
[343091937,1732345848154,-536.24,0.00054999,120]
[343091938,1732345848163,-536.24,0.00054999,120]
[343091939,1732345848173,-536.35943477,0.00054999,120]
[343091940,1732345848182,-500.0,0.00054999,120]
[343091941,1732345848192,-1000.0,0.00054999,30]
[343091942,1732345848203,-500.0,0.00054999,120]
[343091943,1732345848213,-500.0,0.00054999,120]
[343091944,1732345848223,-500.0,0.00054999,120]
[343091945,1732345848232,-421.14852207,0.00054999,120]
[343091946,1732345848242,-500.0,0.00054999,120]
[343091947,1732345848252,-500.0,0.00054999,120]
[343091948,1732345848262,-500.0,0.00054999,120]
[343091949,1732345848271,-500.0,0.00054999,120]
[343091950,1732345848281,-500.0,0.00054999,120]
[343091951,1732345848290,-500.0,0.00054999,120]
[343091952,1732345848300,-500.0,0.00054999,120]
[343091953,1732345848310,-500.0,0.00054999,120]
[343091954,1732345848319,-500.0,0.00054999,120]
[343091955,1732345848329,-376.34731742,0.00054999,120]
[343091956,1732345848338,-612.5,0.00054999,120]
[343091957,1732345848348,-612.5,0.00054999,120]
[343091958,1732345848357,-612.5,0.00054999,120]
[343091959,1732345848368,-612.5,0.00054999,120]
[343091960,1732345848378,-612.5,0.00054999,120]
[343091961,1732345848389,-612.5,0.00054999,120]
[343091962,1732345848399,-612.5,0.00054999,120]
[343091963,1732345848410,-612.5,0.00054999,120]
[343091964,1732345848421,-612.5,0.00054999,120]
[343091965,1732345848432,-612.5,0.00054999,120]
[343091966,1732345848443,-612.5,0.00054999,120]
[343091967,1732345848453,-612.5,0.00054999,120]
[343091968,1732345848463,-612.5,0.00054999,120]
[343091969,1732345848475,-612.5,0.00054999,120]
[343091970,1732345848487,-612.5,0.00054999,120]
[343091971,1732345848496,-612.5,0.00054999,120]
[343091972,1732345848506,-612.5,0.00054999,120]
[343091973,1732345848517,-612.5,0.00054999,120]
[343091974,1732345848527,-612.66979981,0.00054999,120]
[343091975,1732345848537,-593.42,0.00054999,120]
[343091976,1732345848546,-593.42,0.00054999,120]
[343091977,1732345848556,-593.42,0.00054999,120]
[343091978,1732345848568,-593.42,0.00054999,120]
[343091979,1732345848577,-593.42,0.00054999,120]
[343091980,1732345848587,-593.42,0.00054999,120]
[343091981,1732345848596,-593.42,0.00054999,120]
[343091982,1732345848606,-593.42,0.00054999,120]
[343091983,1732345848617,-593.42,0.00054999,120]
[343091984,1732345848626,-593.42,0.00054999,120]
[343091985,1732345848638,-593.42,0.00054999,120]
[343091986,1732345848648,-593.42,0.00054999,120]
[343091987,1732345848658,-593.42,0.00054999,120]
[343091988,1732345848668,-593.42,0.00054999,120]
[343091989,1732345848679,-593.42,0.00054999,120]
[343091990,1732345848689,-593.42,0.00054999,120]
[343091991,1732345848699,-584.72,0.00054999,120]
[343091992,1732345848708,-593.42,0.00054999,120]
[343091993,1732345848718,-584.72,0.00054999,120]
[343091994,1732345848727,-593.65131157,0.00054999,120]
[343091995,1732345848737,-584.72,0.00054999,120]
[343091996,1732345848746,-584.72,0.00054999,120]
[343091997,1732345848756,-584.72,0.00054999,120]
[343091998,1732345848766,-584.72,0.00054999,120]
[343091999,1732345848776,-584.72,0.00054999,120]
[343092000,1732345848785,-584.72,0.00054999,120]
[343092001,1732345848795,-584.72,0.00054999,120]
[343092002,1732345848804,-584.72,0.00054999,120]
[343092003,1732345848814,-584.72,0.00054999,120]
[343092004,1732345848823,-584.72,0.00054999,120]
[343092005,1732345848833,-584.72,0.00054999,120]
[343092006,1732345848843,-584.72,0.00054999,120]
[343092007,1732345848853,-584.72,0.00054999,120]
[343092008,1732345848863,-584.72,0.00054999,120]
[343092009,1732345848872,-1280.96,0.00054999,120]